[Event "British Rapidplay Championship 2023"]
[Site "Mercure Bradford, Bankfield Hotel"]
[Date "2023.04.16"]
[Round "8.10"]
[White "McCarthy, Damian M"]
[Black "Ciuravin, Andrei"]
[Result "0-1"]
[TimeControl "15 minutes plus 10 seconds per move"]
[WhiteElo "1860"]
[BlackElo "2185"]

1. e4 {[%clk 00:15:19]} c5 {[%clk 00:15:19]} {[%emt 00:00:03]} 2. Nf3 {[%clk
00:15:26]} {[%emt 00:00:03]} e6 {[%clk 00:15:26]} {[%emt 00:00:02]} 3. d4
{[%clk 00:15:29]} {[%emt 00:00:06]} cxd4 {[%clk 00:15:35]} {[%emt 00:00:02]} 4.
Nxd4 {[%clk 00:15:37]} {[%emt 00:00:02]} Nf6 {[%clk 00:15:42]} {[%emt
00:00:02]} 5. Nc3 {[%clk 00:15:28]} {[%emt 00:00:19]} d6 {[%clk 00:15:51]}
{[%emt 00:00:02]} 6. Be3 {[%clk 00:15:16]} {[%emt 00:00:22]} Be7 {[%clk
00:15:57]} {[%emt 00:00:03]} 7. f3 {[%clk 00:15:11]} {[%emt 00:00:15]} a6
{[%clk 00:16:06]} {[%emt 00:00:02]} 8. Qd2 {[%clk 00:15:17]} {[%emt 00:00:05]}
b5 {[%clk 00:16:11]} {[%emt 00:00:05]} 9. O-O-O {[%clk 00:15:13]} {[%emt
00:00:14]} Bb7 {[%clk 00:16:19]} {[%emt 00:00:01]} 10. g4 {[%clk 00:15:06]}
{[%emt 00:00:16]} Nc6 {[%clk 00:16:27]} {[%emt 00:00:03]} 11. g5 {[%clk
00:14:46]} {[%emt 00:00:30]} Nd7 {[%clk 00:16:35]} {[%emt 00:00:02]} 12. Nxc6
{[%clk 00:14:28]} {[%emt 00:00:28]} Bxc6 {[%clk 00:16:43]} {[%emt 00:00:02]} 13.
Ne2 {[%clk 00:14:16]} {[%emt 00:00:21]} O-O {[%clk 00:16:27]} {[%emt 00:00:26]}
14. Nd4 {[%clk 00:14:18]} {[%emt 00:00:09]} Bb7 {[%clk 00:16:36]} {[%emt
00:00:01]} 15. h4 {[%clk 00:14:19]} {[%emt 00:00:09]} Rc8 {[%clk 00:16:35]}
{[%emt 00:00:11]} 16. h5 {[%clk 00:13:29]} {[%emt 00:01:00]} d5 {[%clk
00:16:44]} {[%emt 00:00:02]} 17. Bd3 {[%clk 00:12:46]} {[%emt 00:00:52]} e5
{[%clk 00:16:17]} {[%emt 00:00:37]} 18. Nf5 {[%clk 00:12:41]} {[%emt 00:00:15]}
d4 {[%clk 00:16:26]} {[%emt 00:00:02]} 19. Bf2 {[%clk 00:11:51]} {[%emt
00:01:00]} Bxg5 {[%clk 00:16:30]} {[%emt 00:00:05]} 0-1

[Event "British Rapidplay Championship 2023"]
[Site "Mercure Bradford, Bankfield Hotel"]
[Date "2023.04.16"]
[Round "8.11"]
[White "Arkell, Keith C"]
[Black "Sivanandan, Bodhana"]
[Result "1-0"]
[TimeControl "15 minutes plus 10 seconds per move"]
[WhiteElo "2447"]
[BlackElo "1561"]

1. d4 {[%clk 00:15:17]} {[%emt 00:00:02]} d5 {[%clk 00:15:18]} {[%emt
00:00:03]} 2. Nf3 {[%clk 00:15:25]} {[%emt 00:00:02]} Nf6 {[%clk 00:15:26]}
{[%emt 00:00:02]} 3. c4 {[%clk 00:15:34]} {[%emt 00:00:01]} c6 {[%clk
00:15:35]} {[%emt 00:00:02]} 4. Qc2 {[%clk 00:15:42]} dxc4 {[%clk 00:15:43]}
{[%emt 00:00:02]} 5. Qxc4 {[%clk 00:15:51]} {[%emt 00:00:01]} Bf5 {[%clk
00:15:50]} {[%emt 00:00:03]} 6. g3 {[%clk 00:15:56]} {[%emt 00:00:05]} e6
{[%clk 00:15:54]} {[%emt 00:00:07]} 7. Bg2 {[%clk 00:16:04]} {[%emt 00:00:02]}
Be7 {[%clk 00:15:56]} {[%emt 00:00:07]} 8. O-O {[%clk 00:16:11]} {[%emt
00:00:03]} O-O {[%clk 00:16:01]} {[%emt 00:00:05]} 9. Bg5 {[%clk 00:16:18]}
{[%emt 00:00:03]} Ne4 {[%clk 00:15:49]} {[%emt 00:00:22]} 10. Bxe7 {[%clk
00:16:25]} {[%emt 00:00:03]} Qxe7 {[%clk 00:15:50]} {[%emt 00:00:08]} 11. Nh4
{[%clk 00:16:31]} {[%emt 00:00:04]} Nd6 {[%clk 00:15:35]} {[%emt 00:00:25]} 12.
Nxf5 {[%clk 00:16:31]} {[%emt 00:00:11]} Nxf5 {[%clk 00:15:40]} {[%emt
00:00:05]} 13. e3 {[%clk 00:16:36]} {[%emt 00:00:05]} Nd7 {[%clk 00:15:46]}
{[%emt 00:00:04]} 14. Nd2 {[%clk 00:16:36]} {[%emt 00:00:10]} e5 {[%clk
00:15:29]} {[%emt 00:00:27]} 15. Nf3 {[%clk 00:16:33]} {[%emt 00:00:13]} exd4
{[%clk 00:14:58]} {[%emt 00:00:41]} 16. Nxd4 {[%clk 00:16:40]} {[%emt
00:00:02]} Nxd4 {[%clk 00:15:02]} {[%emt 00:00:07]} 17. Qxd4 {[%clk 00:16:48]}
{[%emt 00:00:02]} Nb6 {[%emt 00:00:23]} 18. Qc3 {[%clk 00:16:55]} {[%emt
00:00:02]} h6 {[%clk 00:14:33]} {[%emt 00:00:26]} 19. Rfd1 {[%clk 00:17:03]}
{[%emt 00:00:02]} Rfd8 {[%clk 00:12:44]} {[%emt 00:02:00]} 20. Bf3 {[%clk
00:16:51]} {[%emt 00:00:22]} Qc7 {[%clk 00:12:25]} {[%emt 00:00:29]} 21. b3
{[%clk 00:16:41]} {[%emt 00:00:20]} Rxd1+ {[%clk 00:12:16]} {[%emt 00:00:18]}
22. Rxd1 {[%emt 00:00:04]} Rd8 {[%clk 00:12:25]} 23. Rxd8+ {[%clk 00:16:50]}
{[%emt 00:00:09]} Qxd8 {[%clk 00:12:33]} {[%emt 00:00:02]} 24. a4 {[%clk
00:16:53]} {[%emt 00:00:08]} Qd6 {[%clk 00:11:52]} {[%emt 00:00:50]} 25. a5
{[%clk 00:16:50]} {[%emt 00:00:13]} Nd7 {[%clk 00:11:19]} {[%emt 00:00:43]} 26.
b4 {[%clk 00:15:31]} {[%emt 00:01:29]} Ne5 {[%clk 00:11:04]} {[%emt 00:00:25]}
27. Be4 {[%clk 00:15:31]} {[%emt 00:00:10]} b6 {[%clk 00:10:32]} {[%emt
00:00:43]} 28. Qd4 {[%clk 00:14:17]} {[%emt 00:01:23]} Qc7 {[%clk 00:09:06]}
{[%emt 00:01:36]} 29. a6 {[%clk 00:14:07]} {[%emt 00:00:20]} c5 {[%clk
00:08:34]} {[%emt 00:00:42]} 30. bxc5 {[%clk 00:14:16]} {[%emt 00:00:02]} bxc5
{[%clk 00:08:41]} {[%emt 00:00:03]} 31. Qd5 {[%clk 00:14:24]} {[%emt 00:00:01]}
Nd7 {[%clk 00:08:35]} {[%emt 00:00:16]} 32. Qa8+ {[%clk 00:14:02]} {[%emt
00:00:32]} Nf8 {[%clk 00:08:18]} {[%emt 00:00:27]} 33. Qb7 {[%clk 00:13:25]}
{[%emt 00:00:47]} Qxb7 {[%clk 00:07:55]} {[%emt 00:00:34]} 34. axb7 {[%clk
00:13:33]} {[%emt 00:00:02]} Nd7 {[%clk 00:08:04]} {[%emt 00:00:01]} 35. Kf1
{[%clk 00:13:16]} {[%emt 00:00:26]} Kf8 {[%clk 00:08:13]} {[%emt 00:00:01]} 36.
Ke2 {[%clk 00:12:21]} {[%emt 00:01:06]} Ke7 {[%clk 00:08:21]} {[%emt 00:00:01]}
37. Bc6 {[%clk 00:12:25]} {[%emt 00:00:06]} Nb8 {[%clk 00:08:22]} {[%emt
00:00:09]} 38. Bd5 {[%clk 00:12:33]} {[%emt 00:00:03]} f6 {[%clk 00:07:51]}
{[%emt 00:00:41]} 39. Kd3 {[%clk 00:12:13]} {[%emt 00:00:29]} Kd6 {[%emt
00:00:32]} 40. e4 {[%clk 00:12:06]} {[%emt 00:00:16]} a6 {[%clk 00:07:01]}
{[%emt 00:00:40]} 41. f4 {[%clk 00:12:01]} {[%emt 00:00:14]} Nd7 {[%clk
00:06:31]} {[%emt 00:00:40]} 42. Bc4 {[%clk 00:11:52]} {[%emt 00:00:19]} Kc6
{[%emt 00:00:43]} 43. Be6 {[%clk 00:11:31]} {[%emt 00:00:29]} Nb8 {[%clk
00:05:57]} {[%emt 00:00:13]} 44. Bd5+ {[%clk 00:11:39]} {[%emt 00:00:01]} Kd6
{[%clk 00:05:55]} {[%emt 00:00:13]} 45. h4 {[%clk 00:09:02]} {[%emt 00:02:46]}
Nd7 {[%clk 00:05:40]} {[%emt 00:00:26]} 46. h5 {[%clk 00:09:01]} {[%emt
00:00:11]} Nb8 {[%clk 00:05:37]} {[%emt 00:00:14]} 47. Kc3 {[%clk 00:08:02]}
{[%emt 00:01:08]} Nd7 {[%clk 00:05:07]} {[%emt 00:00:40]} 48. Kb3 {[%clk
00:07:59]} {[%emt 00:00:14]} Kc7 {[%clk 00:05:11]} {[%emt 00:00:06]} 49. g4
{[%clk 00:07:48]} {[%emt 00:00:20]} Nb6 {[%clk 00:04:47]} {[%emt 00:00:34]} 50.
Bc6 {[%clk 00:07:56]} {[%emt 00:00:02]} a5 {[%clk 00:04:35]} {[%emt 00:00:22]}
51. e5 {[%clk 00:07:59]} {[%emt 00:00:07]} fxe5 {[%clk 00:04:17]} {[%emt
00:00:29]} 52. fxe5 {[%clk 00:08:07]} {[%emt 00:00:02]} a4+ {[%clk 00:04:25]}
{[%emt 00:00:02]} 53. Ka2 {[%clk 00:07:49]} {[%emt 00:00:27]} Nc4 {[%clk
00:03:52]} {[%emt 00:00:44]} 54. e6 {[%clk 00:07:52]} {[%emt 00:00:06]} Nd6
{[%emt 00:01:11]} 55. e7 {[%clk 00:07:58]} {[%emt 00:00:02]} c4 {[%clk
00:02:22]} {[%emt 00:00:41]} 56. Bxa4 {[%clk 00:07:35]} {[%emt 00:00:34]} Kxb7
{[%clk 00:02:14]} {[%emt 00:00:18]} 57. Kb2 {[%clk 00:07:34]} {[%emt 00:00:10]}
Kb6 {[%emt 00:00:19]} 58. e8=Q {[%clk 00:07:30]} {[%emt 00:00:14]} Nxe8 {[%clk
00:02:00]} {[%emt 00:00:16]} 59. Bxe8 {[%clk 00:07:37]} {[%emt 00:00:02]} Kc5
{[%clk 00:01:58]} {[%emt 00:00:13]} 60. Kc3 {[%clk 00:07:45]} Kd5 {[%clk
00:01:47]} {[%emt 00:00:21]} 61. Bf7+ {[%clk 00:07:53]} {[%emt 00:00:02]} Ke5
{[%clk 00:01:45]} {[%emt 00:00:12]} 62. Kxc4 {[%clk 00:07:34]} {[%emt
00:00:28]} Kf6 {[%clk 00:01:37]} {[%emt 00:00:19]} 63. Bg6 {[%clk 00:07:23]}
{[%emt 00:00:22]} Kg5 {[%clk 00:01:44]} {[%emt 00:00:03]} 64. Bf5 {[%clk
00:07:31]} {[%emt 00:00:01]} g6 {[%clk 00:01:36]} {[%emt 00:00:18]} 65. hxg6
{[%clk 00:07:31]} {[%emt 00:00:10]} Kf6 {[%clk 00:01:27]} {[%emt 00:00:19]} 66.
Bc2 {[%clk 00:07:36]} {[%emt 00:00:05]} Kg7 {[%clk 00:01:10]} {[%emt 00:00:28]}
67. Kd5 {[%clk 00:07:44]} {[%emt 00:00:02]} h5 {[%clk 00:01:09]} {[%emt
00:00:10]} 68. gxh5 {[%clk 00:07:50]} {[%emt 00:00:04]} Kh6 {[%clk 00:01:18]}
69. Ke6 {[%clk 00:07:55]} {[%emt 00:00:05]} Kxh5 {[%clk 00:01:25]} {[%emt
00:00:03]} 70. g7 {[%clk 00:08:01]} {[%emt 00:00:04]} Kh6 {[%clk 00:01:28]}
{[%emt 00:00:06]} 71. g8=Q {[%clk 00:08:07]} {[%emt 00:00:06]} Kh5 {[%clk
00:01:37]} {[%emt 00:00:01]} 72. Qg3 {[%clk 00:08:15]} {[%emt 00:00:01]} Kh6
{[%clk 00:01:41]} {[%emt 00:00:06]} 73. Qg6 {[%clk 00:08:24]} {[%emt 00:00:01]}
1-0

[Event "British Rapidplay Championship 2023"]
[Site "Mercure Bradford, Bankfield Hotel"]
[Date "2023.04.16"]
[Round "8.12"]
[White "Mosnegutu, Klauss"]
[Black "Mikalajunas, Kajus"]
[Result "1-0"]
[TimeControl "15 minutes plus 10 seconds per move"]
[WhiteElo "2229"]
[BlackElo "1778"]

1. d4 {[%clk 00:15:17]} {[%emt 00:00:02]} Nf6 {[%clk 00:15:18]} {[%emt
00:00:03]} 2. c4 {[%clk 00:15:26]} {[%emt 00:00:01]} c5 {[%clk 00:15:26]}
{[%emt 00:00:02]} 3. d5 {[%clk 00:15:35]} {[%emt 00:00:01]} e6 {[%clk
00:15:35]} {[%emt 00:00:02]} 4. Nc3 {[%clk 00:15:43]} {[%emt 00:00:01]} exd5
{[%clk 00:15:43]} {[%emt 00:00:02]} 5. cxd5 {[%clk 00:15:52]} {[%emt 00:00:02]}
d6 {[%clk 00:15:51]} {[%emt 00:00:01]} 6. e4 {[%clk 00:16:00]} {[%emt
00:00:01]} g6 {[%clk 00:15:59]} {[%emt 00:00:02]} 7. f4 {[%clk 00:16:09]} Bg7
{[%clk 00:16:04]} {[%emt 00:00:06]} 8. Nf3 {[%clk 00:16:18]} O-O {[%clk
00:15:57]} {[%emt 00:00:15]} 9. Be2 {[%clk 00:16:27]} Bg4 {[%clk 00:14:25]}
{[%emt 00:01:44]} 10. O-O {[%clk 00:16:35]} {[%emt 00:00:02]} Bxf3 {[%clk
00:13:57]} {[%emt 00:00:38]} 11. Bxf3 {[%clk 00:16:44]} {[%emt 00:00:02]} Nbd7
{[%clk 00:13:51]} {[%emt 00:00:16]} 12. Re1 {[%clk 00:16:52]} {[%emt 00:00:02]}
Qe7 {[%clk 00:13:06]} {[%emt 00:00:55]} 13. Be3 {[%clk 00:16:29]} {[%emt
00:00:34]} Rab8 {[%clk 00:11:58]} {[%emt 00:01:18]} 14. a4 {[%clk 00:16:22]}
{[%emt 00:00:17]} a6 {[%clk 00:12:06]} {[%emt 00:00:01]} 15. Qd3 {[%clk
00:16:24]} {[%emt 00:00:07]} Rfc8 {[%clk 00:11:46]} {[%emt 00:00:30]} 16. Bf2
{[%clk 00:16:00]} {[%emt 00:00:34]} c4 {[%clk 00:11:24]} {[%emt 00:00:33]} 17.
Qd2 {[%clk 00:15:41]} {[%emt 00:00:28]} b5 {[%clk 00:11:16]} {[%emt 00:00:18]}
18. axb5 {[%clk 00:15:42]} {[%emt 00:00:09]} axb5 {[%clk 00:11:25]} {[%emt
00:00:02]} 19. Ra7 {[%clk 00:15:41]} {[%emt 00:00:11]} Ne8 {[%clk 00:09:45]}
{[%emt 00:01:50]} 20. Na2 {[%clk 00:13:16]} {[%emt 00:02:35]} b4 {[%clk
00:08:59]} {[%emt 00:00:56]} 21. Nxb4 {[%clk 00:13:05]} {[%emt 00:00:21]} c3
{[%clk 00:09:04]} {[%emt 00:00:05]} 22. bxc3 {[%clk 00:07:21]} {[%emt
00:05:54]} Bxc3 {[%clk 00:09:10]} {[%emt 00:00:04]} 23. Qxc3 {[%clk 00:04:54]}
{[%emt 00:02:37]} Rxc3 {[%clk 00:09:18]} {[%emt 00:00:02]} 24. Nc6 {[%clk
00:05:03]} {[%emt 00:00:01]} Qf8 {[%clk 00:08:15]} {[%emt 00:01:12]} 25. Rxd7
{[%clk 00:04:56]} {[%emt 00:00:17]} Ng7 {[%clk 00:06:26]} {[%emt 00:01:59]} 26.
Nxb8 {[%clk 00:03:53]} {[%emt 00:01:13]} Qxb8 {[%clk 00:06:33]} {[%emt
00:00:03]} 27. e5 {[%clk 00:04:02]} {[%emt 00:00:01]} dxe5 {[%clk 00:06:04]}
{[%emt 00:00:39]} 28. fxe5 {[%clk 00:04:11]} {[%emt 00:00:01]} Qc8 {[%clk
00:05:43]} {[%emt 00:00:31]} 29. e6 {[%clk 00:03:33]} {[%emt 00:00:47]} fxe6
{[%clk 00:05:45]} {[%emt 00:00:08]} 30. dxe6 {[%clk 00:03:42]} Rc1 {[%clk
00:05:44]} {[%emt 00:00:11]} 31. Rxc1 {[%clk 00:03:35]} {[%emt 00:00:17]} Qxc1+
{[%clk 00:05:51]} 32. Rd1 {[%clk 00:03:45]} Qc7 {[%clk 00:04:53]} {[%emt
00:01:12]} 33. g4 {[%clk 00:03:42]} {[%emt 00:00:13]} Kf8 {[%clk 00:03:31]}
{[%emt 00:01:31]} 34. Bd5 {[%clk 00:02:27]} {[%emt 00:01:25]} h6 {[%clk
00:02:34]} {[%emt 00:01:06]} 35. Ra1 {[%clk 00:01:21]} {[%emt 00:01:16]} Ne8
{[%clk 00:01:57]} {[%emt 00:00:47]} 36. Ra7 {[%clk 00:01:24]} {[%emt 00:00:07]}
Qc2 {[%clk 00:01:31]} {[%emt 00:00:36]} 37. Kg2 {[%clk 00:01:20]} {[%emt
00:00:15]} Qd1 {[%clk 00:01:13]} {[%emt 00:00:28]} 38. Rf7+ {[%clk 00:01:24]}
{[%emt 00:00:05]} Kg8 {[%clk 00:01:22]} {[%emt 00:00:01]} 39. Bf3 {[%clk
00:01:33]} {[%emt 00:00:01]} Qd6 {[%clk 00:01:13]} {[%emt 00:00:19]} 40. Rd7
{[%clk 00:01:41]} {[%emt 00:00:03]} Qb8 {[%clk 00:00:43]} {[%emt 00:00:39]} 41.
Bd4 {[%clk 00:01:40]} {[%emt 00:00:11]} Qc8 {[%clk 00:00:39]} {[%emt 00:00:15]}
42. Be4 {[%clk 00:01:44]} {[%emt 00:00:06]} Qc1 {[%clk 00:00:25]} {[%emt
00:00:24]} 43. Bxg6 {[%clk 00:01:39]} {[%emt 00:00:15]} Nc7 {[%clk 00:00:25]}
{[%emt 00:00:10]} 44. Rd8+ {[%clk 00:01:42]} {[%emt 00:00:07]} 1-0